bitfinex-derivatives/quotes_BTCF0:USTF0_20250218
["timestamp","ask_amount","ask_price","bid_price","bid_amount"]
[1739912474462,0.2121168,94333.0,94311.0,0.3608]
[1739912474664,0.2121168,94333.0,94327.0,0.2121279]
[1739912474962,0.3608,94328.0,94327.0,0.2121279]
[1739912476155,0.3608,94328.0,94315.0,0.2121563]
[1739912476463,0.3598,94317.0,94313.0,0.00015907]
[1739912476650,0.3598,94317.0,94314.0,0.2121593]
[1739912477159,0.3588,94317.0,94314.0,0.2121593]
[1739912477562,0.3658,94317.0,94315.0,0.2121567]
[1739912479559,0.3608,94328.0,94327.0,0.2121301]
[1739912480869,0.3678,94328.0,94327.0,0.2131301]
[1739912482767,0.55059996,94344.0,94343.0,0.2120941]
[1739912483469,0.55059996,94344.0,94338.0,0.212105]
[1739912483661,0.55059996,94344.0,94334.0,0.00015907]
[1739912483862,0.55059996,94344.0,94339.0,0.2121027]
[1739912484065,0.55659996,94344.0,94343.0,0.001]
[1739912484459,0.55059996,94344.0,94339.0,0.2121026]
[1739912484665,0.55659996,94344.0,94338.0,0.001]
[1739912484865,0.2121014,94340.0,94338.0,0.001]
[1739912485169,0.2111121,94335.0,94334.0,0.00015907]
[1739912485359,0.55659996,94344.0,94334.0,0.00015907]
[1739912485360,0.3608,94337.0,94334.0,0.00015907]
[1739912485765,0.3608,94337.0,94335.0,0.2121121]
[1739912486172,0.3608,94337.0,94334.0,0.00015907]
[1739912486474,0.3608,94337.0,94335.0,0.2121115]
[1739912486668,0.3598,94337.0,94335.0,0.2121115]
[1739912487269,0.5719085,94337.0,94335.0,0.2121115]
[1739912487469,0.2121121,94335.0,94334.0,0.00015907]
[1739912487768,0.2121121,94335.0,94334.0,0.00115907]
[1739912488471,0.1651,94336.0,94334.0,0.00115907]
[1739912488767,0.0812,94336.0,94335.0,0.2121121]
[1739912489470,0.2111121,94335.0,94334.0,0.00015907]
[1739912489772,0.5,94334.0,94314.0,0.92436]
[1739912489970,0.3598,94324.0,94314.0,0.92436]
[1739912490277,0.3608,94315.0,94314.0,0.92436]
[1739912490667,0.3598,94315.0,94314.0,1.1365193]
[1739912490972,0.3598,94315.0,94314.0,0.2121593]
[1739912491571,0.0774,94323.0,94322.0,0.2121413]
[1739912491769,0.3608,94341.0,94320.0,0.3608]
[1739912491971,0.3608,94341.0,94334.0,0.2121144]
[1739912493077,0.3608,94341.0,94325.0,0.00015907]
[1739912493279,0.3608,94341.0,94337.0,0.2121076]
[1739912493579,0.3608,94341.0,94340.0,0.2121009]
[1739912495671,0.3608,94341.0,94340.0,0.2131009]
[1739912497072,0.004,94341.0,94340.0,0.2131009]
[1739912497266,0.19018927,94356.0,94355.0,0.2120672]
[1739912498583,0.19018927,94356.0,94355.0,0.22259117]
[1739912498787,0.19418927,94356.0,94355.0,0.22359117]
[1739912500584,0.002,94356.0,94355.0,0.22359117]
[1739912501174,0.3608,94362.0,94355.0,0.01052397]
[1739912501379,0.26361268,94365.0,94355.0,0.001]
[1739912501684,0.05156718,94365.0,94364.0,0.2120469]
[1739912502972,0.05156718,94365.0,94355.0,0.19536571]
[1739912502973,0.05156718,94365.0,94355.0,0.20614486]
[1739912503183,0.2120649,94356.0,94355.0,0.41821196]
[1739912503486,0.3608,94358.0,94357.0,0.2120627]
[1739912503983,0.3598,94358.0,94353.0,0.92412]
[1739912504190,0.2120694,94354.0,94353.0,0.92412]
[1739912504480,0.3598,94358.0,94351.0,0.2120758]
[1739912504481,0.2120739,94352.0,94351.0,0.2120758]
[1739912504675,0.2110739,94352.0,94351.0,0.2120758]
[1739912505072,0.3598,94358.0,94346.0,0.19452468]
[1739912505370,0.2120851,94347.0,94346.0,0.00015897]
[1739912505575,0.3608,94348.0,94330.0,0.19436571]
[1739912505784,0.3608,94340.0,94336.0,0.2121084]
[1739912506177,0.3598,94340.0,94336.0,0.2121084]
[1739912506382,0.3598,94340.0,94330.0,0.19436571]
[1739912506686,0.3598,94340.0,94331.0,0.2121205]
[1739912506687,0.2121079,94337.0,94331.0,0.2121205]
[1739912506986,0.3608,94332.0,94331.0,0.2121205]
[1739912507178,0.5729206,94332.0,94330.0,0.19436571]
[1739912507378,0.5719206,94332.0,94330.0,0.19436571]
[1739912507588,0.5719206,94332.0,94330.0,0.20524123]
[1739912507886,0.5719206,94332.0,94331.0,0.001]
[1739912508782,0.9327206,94332.0,94331.0,0.001]
[1739912508978,0.7206,94332.0,94326.0,0.00015897]
[1739912509183,0.504,94337.0,94326.0,0.00015897]
[1739912509184,0.8648,94337.0,94326.0,0.00015897]
[1739912509486,0.004,94332.0,94330.0,0.001]
[1739912509682,0.2161194,94332.0,94330.0,0.001]
[1739912509883,0.2161194,94332.0,94326.0,0.00015897]
[1739912510186,0.004,94332.0,94331.0,0.001]
[1739912510588,0.2121301,94327.0,94326.0,0.00015897]
[1739912510787,0.5719301,94327.0,94326.0,0.00015897]
[1739912511491,0.3608,94327.0,94310.0,0.19436571]
[1739912511789,0.5729515,94318.0,94303.0,0.00159051]
[1739912511990,0.3608,94318.0,94316.0,0.2121542]
[1739912512185,0.3608,94318.0,94308.0,0.19436571]
[1739912512689,0.3608,94318.0,94308.0,0.20516818]
[1739912512891,0.00015897,94322.0,94321.0,0.2121436]
[1739912514186,0.00115897,94322.0,94321.0,0.2121436]
[1739912514889,0.00115897,94322.0,94321.0,0.5729436]
[1739912515594,0.00115897,94322.0,94321.0,0.2121436]
[1739912516992,0.00015897,94322.0,94321.0,0.2121436]
[1739912517192,0.00015897,94322.0,94321.0,0.2131436]
[1739912517696,0.00015897,94322.0,94321.0,0.2121436]
[1739912519691,7e-08,94322.0,94321.0,0.2121436]
[1739912519893,0.0878,94348.0,94321.0,0.001]
[1739912520190,0.0878,94348.0,94347.0,0.2120853]
[1739912520397,4e-08,94350.0,94349.0,0.2120808]
[1739912521286,4e-08,94350.0,94349.0,0.22284818]
[1739912522993,4e-08,94350.0,94349.0,0.22384818]
[1739912523888,0.3608,94354.0,94353.0,0.2120719]
[1739912525092,0.00015865,94359.0,94349.0,0.01176738]
[1739912525297,0.00015865,94359.0,94358.0,0.2120606]
[1739912526596,5e-08,94359.0,94358.0,0.2120606]
[1739912526800,0.3608,94373.0,94372.0,0.2120292]
[1739912527187,0.4491,94388.0,94387.0,0.2119955]
[1739912527394,0.4491,94388.0,94387.0,0.22271248]
[1739912528389,0.4491,94388.0,94387.0,0.2119955]
[1739912528999,0.25042443,94394.0,94393.0,0.211982]
[1739912529500,0.3608,94415.0,94411.0,0.2119416]
[1739912529896,0.10656998,94412.0,94411.0,0.2119416]
[1739912530999,0.10756998,94412.0,94411.0,0.2129416]
[1739912531203,0.3608,94425.0,94419.0,0.2119236]
[1739912531590,0.3608,94435.0,94427.0,0.2119057]
[1739912533088,0.3608,94446.0,94427.0,0.2119057]
[1739912533089,0.3608,94446.0,94444.0,0.2118664]
[1739912533500,0.2118662,94445.0,94436.0,0.19436571]
[1739912533700,0.2118662,94445.0,94436.0,0.19452459]
[1739912534003,0.0879,94445.0,94441.0,0.2118731]
[1739912534204,0.0879,94445.0,94439.0,0.2118777]
[1739912534392,0.0879,94445.0,94441.0,0.2118733]
[1739912534595,0.0879,94445.0,94443.0,0.2118679]
[1739912534893,0.2118675,94444.0,94436.0,0.20610556]
[1739912535094,0.0879,94445.0,94436.0,0.20510556]
[1739912535400,0.3608,94455.0,94454.0,0.2118451]
[1739912535802,0.3608,94455.0,94454.0,0.2117843]
[1739912536497,0.2118521,94451.0,94445.0,1.33138971]
[1739912536691,0.22112877,94465.0,94458.0,0.2118352]
[1739912537093,0.22112877,94465.0,94447.0,0.3608]
[1739912537295,0.22112877,94465.0,94455.0,0.19436571]
[1739912537603,0.58192877,94465.0,94461.0,0.2118283]
[1739912537797,0.22112877,94465.0,94461.0,0.2118283]
[1739912538002,0.3608,94466.0,94461.0,0.2118283]
[1739912538397,0.3608,94466.0,94462.0,0.2118267]
[1739912538999,0.2118211,94465.0,94458.0,0.2128358]
[1739912539300,0.3608,94466.0,94464.0,0.2118223]
[1739912539702,0.3608,94466.0,94456.0,0.00015879]
[1739912539903,0.3608,94466.0,94461.0,0.2118284]
[1739912540200,0.3608,94466.0,94464.0,0.2118209]
[1739912540595,0.3608,94466.0,94456.0,0.00015879]
[1739912540596,0.3608,94466.0,94459.0,0.2118332]
[1739912540795,0.5726192,94466.0,94459.0,0.2118332]
[1739912541005,0.3608,94466.0,94459.0,0.2118332]
[1739912541306,0.2108365,94458.0,94456.0,0.00015879]
[1739912541504,0.2118406,94456.0,94454.0,0.92352]
[1739912541724,0.2118655,94445.0,94440.0,0.19436571]
[1739912541897,0.3608,94443.0,94440.0,0.19436571]
[1739912542104,0.3608,94443.0,94430.0,0.19436571]
[1739912542403,0.3608,94433.0,94410.0,0.19436571]
[1739912542597,0.211915,94423.0,94416.0,0.211929]
[1739912542793,0.211915,94423.0,94412.0,0.00015879]
[1739912542794,0.3608,94423.0,94412.0,0.00015879]
[1739912542993,0.2119325,94416.0,94412.0,0.00015879]
[1739912543198,0.317217,94422.0,94412.0,0.00015879]
[1739912543408,0.1053,94422.0,94412.0,0.00015879]
[1739912543604,0.3608,94413.0,94412.0,0.00015879]
[1739912544706,0.3608,94413.0,94375.0,1.5]
[1739912544907,0.3608,94409.0,94400.0,0.19436571]
[1739912545210,0.3608,94409.0,94406.0,0.2119521]
[1739912545407,0.3608,94409.0,94407.0,0.2119494]
[1739912546902,0.3608,94409.0,94408.0,0.00358847]
[1739912547302,0.3608,94409.0,94408.0,0.00158847]
[1739912547502,0.3608,94409.0,94408.0,0.00358847]
[1739912547711,0.3608,94479.0,94438.0,0.0529696]
[1739912547899,0.3608,94489.0,94478.0,0.3608]
[1739912548206,0.3608,94489.0,94469.0,0.55516571]
[1739912548207,0.1925,94488.0,94479.0,0.19436571]
[1739912548409,0.2117734,94486.0,94471.0,0.2118057]
[1739912548607,0.7941,94488.0,94470.0,0.19436571]
[1739912548908,0.29425867,94488.0,94487.0,0.2117711]
[1739912549817,0.30125867,94488.0,94487.0,0.2117711]
[1739912550111,0.29425867,94488.0,94487.0,0.2117711]
[1739912550409,0.30125867,94488.0,94487.0,0.001]
[1739912551405,0.30125867,94488.0,94487.0,0.2127711]
[1739912553317,0.00715867,94488.0,94487.0,0.2127711]
[1739912554913,0.21294755,94511.0,94487.0,0.001]
[1739912555106,0.21294755,94511.0,94501.0,0.55516571]
[1739912555503,0.2117359,94503.0,94501.0,0.3608]
[1739912556313,0.5,94510.0,94505.0,0.2117298]
[1739912556723,0.21294755,94511.0,94505.0,0.2117298]
[1739912557320,0.5,94506.0,94505.0,0.2117298]
[1739912557709,0.5,94506.0,94501.0,0.3618]
[1739912557710,0.2117361,94503.0,94501.0,0.3618]
[1739912558012,0.21294755,94511.0,94501.0,0.3618]
[1739912558415,0.42466515,94511.0,94501.0,0.3618]
[1739912558715,0.2117242,94508.0,94501.0,0.3618]
[1739912558922,0.21294755,94511.0,94501.0,0.3618]
[1739912560220,0.2117317,94505.0,94501.0,0.3618]
[1739912560419,0.21294755,94511.0,94501.0,0.3618]
[1739912560620,0.2117363,94503.0,94501.0,0.3608]
[1739912560818,0.2117425,94500.0,94494.0,0.2117546]
[1739912561121,0.8608,94504.0,94496.0,0.2117504]
[1739912561323,0.2117352,94503.0,94501.0,0.001]
[1739912561816,0.8608,94504.0,94493.0,0.21191586]
[1739912562516,0.8608,94504.0,94493.0,0.00015876]
[1739912562817,0.2117541,94495.0,94493.0,0.00015876]
[1739912563813,0.5,94494.0,94493.0,0.00115876]
[1739912564227,0.2127541,94495.0,94493.0,0.00115876]
[1739912564421,0.001,94495.0,94493.0,0.00115876]
[1739912564626,0.2127544,94495.0,94493.0,0.00115876]
[1739912564922,0.001,94494.0,94493.0,0.00115876]
[1739912565422,0.2127554,94494.0,94493.0,0.00115876]
[1739912566123,0.001,94494.0,94493.0,0.21291646]
[1739912566419,0.2117554,94494.0,94493.0,0.00115876]
[1739912566915,0.2117554,94494.0,94493.0,0.00015876]
[1739912567116,0.2177554,94494.0,94493.0,0.00115876]
[1739912567916,0.5785554,94494.0,94493.0,0.00115876]
[1739912568117,0.2177554,94494.0,94493.0,0.00115876]
[1739912568316,0.5785554,94494.0,94493.0,0.00115876]
[1739912569219,0.2177554,94494.0,94493.0,0.00115876]
[1739912569717,0.806,94494.0,94486.0,0.00846]
[1739912569923,0.5725711,94487.0,94486.0,0.00846]
[1739912571127,0.8828711,94487.0,94486.0,0.00946]
[1739912571515,0.7789711,94487.0,94486.0,0.00946]
[1739912571911,0.6785711,94487.0,94486.0,0.00946]
[1739912572715,0.8177711,94487.0,94486.0,0.00946]
[1739912572913,0.002,94487.0,94486.0,0.00946]
[1739912573112,0.002,94487.0,94486.0,0.2212333]
[1739912575530,0.00015876,94496.0,94486.0,0.00946]
[1739912575730,0.00015876,94496.0,94495.0,0.5725532]
[1739912577527,0.00015876,94496.0,94495.0,0.5735532]
[1739912580430,0.05856157,94535.0,94520.0,0.0529243]
[1739912580626,0.01040935,94575.0,94534.0,0.7216]
[1739912580931,0.01040935,94575.0,94525.0,0.19436571]
[1739912580932,0.3608,94573.0,94565.0,0.19436571]
[1739912581230,0.01040935,94575.0,94574.0,0.2115763]
[1739912581429,0.01040935,94575.0,94564.0,0.01074585]
[1739912581618,0.01040935,94575.0,94563.0,0.3608]
[1739912581619,0.3608,94578.0,94565.0,0.00015866]
[1739912581927,0.5,94580.0,94565.0,0.00015866]
[1739912582323,0.5,94580.0,94578.0,0.2115672]
[1739912582521,0.1069,94586.0,94574.0,0.3608]
[1739912582918,0.1053,94596.0,94589.0,0.2115415]
[1739912583236,0.1053,94596.0,94585.0,0.3608]
[1739912583237,0.2115301,94595.0,94585.0,0.3608]
[1739912583421,0.1,94600.0,94585.0,0.3608]
[1739912583932,0.2115253,94597.0,94585.0,0.3608]
[1739912584121,0.1,94600.0,94589.0,0.001]
[1739912584527,0.2115266,94597.0,94589.0,0.001]
[1739912584827,0.2115308,94595.0,94585.0,0.36195857]
[1739912585028,0.1,94600.0,94585.0,0.36195857]
[1739912585226,0.1,94600.0,94590.0,0.19436571]
[1739912586624,0.1,94600.0,94589.0,0.001]
[1739912586828,0.1,94600.0,94590.0,0.19436571]
[1739912587132,0.31152,94600.0,94590.0,0.001]
[1739912587325,0.31152,94600.0,94590.0,0.19536571]
[1739912587521,0.31152,94600.0,94590.0,0.001]
[1739912588221,0.1,94600.0,94598.0,0.2115222]
[1739912588425,0.3608,94631.0,94610.0,0.2114943]
[1739912588628,0.0979,94630.0,94621.0,0.3608]
[1739912588825,0.0979,94630.0,94611.0,0.3608]
[1739912589027,0.2114617,94626.0,94611.0,0.36095857]
[1739912589325,0.1054,94655.0,94625.0,0.3608]
[1739912589520,0.3167955,94655.0,94645.0,0.55516571]
[1739912589734,0.1054,94655.0,94654.0,0.3608]
[1739912590032,0.34607224,94680.0,94662.0,0.2113778]
[1739912590236,0.34607224,94680.0,94663.0,0.3608]
[1739912590437,0.24740577,94664.0,94663.0,0.3608]
[1739912590737,0.34607224,94680.0,94671.0,0.2113595]
[1739912590935,0.8031,94699.0,94671.0,0.3608]
[1739912590936,0.5,94699.0,94671.0,0.3608]
[1739912591139,0.36880705,94728.0,94698.0,0.3824]
[1739912591336,0.36880705,94728.0,94709.0,0.19436571]
[1739912591536,0.3608,94728.0,94709.0,0.19436571]
[1739912591835,9.5,94920.0,94718.0,0.3608]
[1739912591836,0.5,94756.0,94718.0,0.3608]
[1739912592025,0.51075787,94775.0,94738.0,0.3608]
[1739912592228,0.44717058,94759.0,94749.0,0.3608]
[1739912592427,0.01075787,94775.0,94758.0,0.3608]
[1739912592628,0.01075787,94775.0,94730.0,0.00158318]
[1739912592629,0.3608,94792.0,94772.0,0.3608]
[1739912592826,0.3047,94797.0,94791.0,0.2110919]
[1739912593127,0.3047,94797.0,94780.0,0.6575966]
[1739912593332,0.3047,94797.0,94789.0,0.3608]
[1739912593530,0.40676014,94815.0,94789.0,0.7216]
[1739912593732,0.40264299,94815.0,94814.0,0.2110407]
[1739912593942,0.40264299,94815.0,94808.0,0.3608]
[1739912594138,0.40264299,94815.0,94814.0,0.3608]
[1739912594443,0.39164299,94815.0,94813.0,0.9218]
[1739912594631,0.35592721,94815.0,94813.0,0.9218]
[1739912594833,0.3608,94814.0,94813.0,0.9218]
[1739912595640,0.3608,94814.0,94786.0,0.3608]
[1739912595842,0.3608,94794.0,94782.0,0.23108]
[1739912596046,0.3608,94785.0,94780.0,0.2967966]
[1739912596338,0.3608,94786.0,94770.0,0.2967966]
[1739912596644,0.3608,94776.0,94770.0,0.30714862]
[1739912597442,0.3608,94773.0,94761.0,0.00158267]
[1739912597637,0.3608,94763.0,94761.0,0.00158267]
[1739912598345,0.3608,94763.0,94759.0,0.18811758]
[1739912598648,0.2111671,94758.0,94720.0,0.3608]
[1739912598842,0.3608,94739.0,94720.0,0.6575966]
[1739912599041,0.3608,94739.0,94730.0,0.00015829]
[1739912599346,0.00015829,94739.0,94736.0,0.2112134]
[1739912599841,0.00015829,94739.0,94730.0,0.00015829]
[1739912600036,0.3608,94734.0,94730.0,0.00015829]
[1739912600233,0.3608,94734.0,94710.0,0.00844]
[1739912600439,0.3608,94723.0,94710.0,0.00844]
[1739912601239,0.36046599,94714.0,94700.0,0.1]
[1739912601539,0.36046599,94714.0,94684.0,0.21291319]
[1739912601758,0.3608,94699.0,94684.0,0.00158369]
[1739912602061,0.3608,94699.0,94660.0,0.3608]
[1739912602062,0.3608,94686.0,94659.0,0.61162344]
[1739912602259,0.3608,94674.0,94659.0,0.25082344]
[1739912602463,0.3608,94674.0,94660.0,0.00026]
[1739912602663,0.3608,94666.0,94660.0,0.00026]
[1739912602965,0.0528133,94719.0,94660.0,0.00026]
[1739912602966,0.13897779,94697.0,94663.0,0.3608]
[1739912603169,0.13897779,94697.0,94675.0,0.3608]
[1739912603371,0.5,94696.0,94675.0,0.3608]
[1739912603570,0.5,94698.0,94683.0,0.3608]
[1739912603867,0.3608,94717.0,94691.0,0.3608]
[1739912604071,0.8608,94705.0,94675.0,0.3608]
[1739912604364,0.8608,94705.0,94695.0,0.00015838]
[1739912604365,0.2113015,94697.0,94695.0,0.00015838]
[1739912604568,0.3608,94705.0,94695.0,0.00015838]
[1739912604765,0.8608,94705.0,94695.0,0.00015838]
[1739912604967,0.5,94699.0,94695.0,0.00015838]
[1739912605167,0.3608,94696.0,94663.0,0.3608]
[1739912605360,0.5,94689.0,94664.0,0.13376]
[1739912605562,0.5058844,94695.0,94676.0,0.3608]
[1739912605868,0.5,94686.0,94676.0,0.3608]
[1739912606069,0.5,94685.0,94676.0,0.3608]
[1739912606265,0.49436,94696.0,94684.0,0.3608]
[1739912606469,0.00015838,94690.0,94684.0,0.3608]
[1739912606657,0.00015838,94690.0,94676.0,0.3608]
[1739912607663,0.00015838,94690.0,94684.0,0.3608]
[1739912608468,0.00015838,94690.0,94688.0,0.2113195]
[1739912608862,0.0967,94698.0,94685.0,1.5014]
[1739912609162,0.0967,94698.0,94697.0,0.5721014]
[1739912609366,0.5,94740.0,94713.0,0.2112639]
[1739912609565,0.1063,94735.0,94724.0,0.3608]
[1739912610073,0.1063,94735.0,94725.0,0.2112373]
[1739912610268,0.1063,94735.0,94726.0,0.2112353]
[1739912610664,0.1063,94735.0,94724.0,0.3608]
[1739912611373,0.1063,94735.0,94724.0,0.5720391]
[1739912611674,0.1063,94735.0,94724.0,0.3608]
[1739912611869,0.3175184,94735.0,94724.0,0.3607046]
[1739912612258,0.1063,94735.0,94725.0,0.2112388]
[1739912612473,0.1063,94735.0,94734.0,0.3608]
[1739912613566,0.211231,94729.0,94720.0,0.00015838]
[1739912614268,0.25498105,94734.0,94720.0,0.00015838]
[1739912614466,0.25498105,94734.0,94723.0,0.3608]
[1739912614665,0.1063,94735.0,94723.0,0.3608]
[1739912615173,0.1063,94735.0,94731.0,0.3608]
[1739912615572,0.1063,94735.0,94732.0,0.00026]
[1739912616372,0.50015838,94739.0,94732.0,0.00026]
[1739912616574,0.5,94737.0,94732.0,0.00026]
[1739912616768,0.00015838,94739.0,94738.0,0.21121]
[1739912617070,0.1015,94770.0,94732.0,0.00026]
[1739912617071,0.5,94770.0,94739.0,0.0528015]
[1739912617368,0.5,94778.0,94767.0,0.3608]
[1739912617566,0.132,94788.0,94777.0,0.3608]
[1739912617764,0.5,94784.0,94777.0,0.3608]
[1739912617970,0.5,94789.0,94777.0,0.3608]
[1739912618271,0.1015,94799.0,94777.0,0.3608]
[1739912618272,0.3608,94815.0,94788.0,0.3608]
[1739912618570,0.00015637,94792.0,94788.0,0.3608]
[1739912618766,0.00015637,94792.0,94790.0,0.2110922]
[1739912619071,0.00015637,94792.0,94779.0,0.2967966]
[1739912619280,0.00015637,94792.0,94777.0,0.3608]
[1739912619660,0.2111298,94774.0,94758.0,0.3608]
[1739912620169,0.00015637,94792.0,94758.0,0.3608]
[1739912620170,0.3608,94779.0,94758.0,0.3608]
[1739912620371,0.2111632,94759.0,94758.0,0.3608]
[1739912620565,0.17070014,94765.0,94741.0,0.79786808]
[1739912620773,0.2111846,94750.0,94741.0,0.79786808]
[1739912621074,0.2111922,94746.0,94741.0,0.79786808]
[1739912621275,0.5,94755.0,94741.0,0.79786808]
[1739912621475,0.5,94750.0,94741.0,0.79786808]
[1739912621673,0.3608,94756.0,94741.0,0.79786808]
[1739912621973,0.00015829,94757.0,94748.0,0.24798482]
[1739912622166,0.2111846,94750.0,94748.0,0.24798482]
[1739912622368,0.5,94749.0,94748.0,0.24798482]
[1739912622573,0.7111855,94749.0,94748.0,0.24798482]
[1739912622867,0.2112033,94741.0,94740.0,0.30998102]
[1739912623071,0.3608,94747.0,94740.0,0.30998102]
[1739912623371,0.5,94749.0,94740.0,0.30998102]
[1739912623776,0.00015829,94757.0,94743.0,0.3608]
[1739912623968,0.00015829,94757.0,94753.0,0.2111748]
[1739912624166,0.00015829,94757.0,94756.0,0.5719699]
[1739912624473,0.2110923,94791.0,94756.0,0.5719699]
[1739912624474,0.5,94803.0,94756.0,0.3608]
[1739912624682,0.3608,94818.0,94740.0,0.60677762]
[1739912624683,0.3608,94818.0,94793.0,0.3608]
[1739912624873,0.3608,94818.0,94793.0,0.5718874]
[1739912625178,0.5,94817.0,94793.0,0.3608]
[1739912625677,0.36095637,94806.0,94787.0,0.00015829]
[1739912625866,0.2110869,94794.0,94787.0,0.00015829]
[1739912626073,0.211089,94793.0,94789.0,0.3608]
[1739912626374,0.3608,94794.0,94787.0,0.00015829]
[1739912626577,0.2110967,94789.0,94787.0,0.00015829]
[1739912626772,0.5,94805.0,94787.0,0.00015829]
[1739912626979,0.00015637,94806.0,94799.0,0.2110741]
[1739912628269,0.00015637,94806.0,94793.0,0.3608]
[1739912628270,0.3608,94839.0,94804.0,0.2110618]
[1739912628471,0.2110161,94826.0,94812.0,0.3608]
[1739912628671,0.3608,94839.0,94812.0,0.3608]
[1739912628872,0.13316,94838.0,94820.0,0.3608]
[1739912629379,0.3608,94826.0,94812.0,0.3608]
[1739912629581,0.2110251,94821.0,94820.0,0.00015821]
[1739912629772,0.2110251,94821.0,94809.0,0.3608]
[1739912629972,0.2110323,94818.0,94809.0,0.3608]
[1739912630380,0.2110352,94817.0,94809.0,0.3608]
[1739912630581,0.5,94823.0,94809.0,0.3608]
[1739912630777,0.3608,94815.0,94801.0,0.3608]
[1739912630972,0.13276,94815.0,94801.0,0.3608]
[1739912631177,0.13276,94815.0,94811.0,0.2110465]
[1739912631377,0.00015793,94825.0,94811.0,0.2110465]
[1739912631679,0.21117543,94825.0,94811.0,0.2110465]
[1739912631880,0.2110229,94822.0,94821.0,0.3608]
[1739912632881,0.2110229,94822.0,94821.0,0.36107]
[1739912633073,0.00015793,94825.0,94821.0,0.36107]
[1739912633468,0.2110213,94823.0,94821.0,0.36107]
[1739912633977,0.2110474,94811.0,94810.0,0.3608]
[1739912634171,0.5,94823.0,94807.0,0.00015821]
[1739912634372,0.2110344,94817.0,94811.0,0.3608]
[1739912634775,0.2110365,94816.0,94811.0,0.3608]
[1739912634975,0.00015793,94825.0,94811.0,0.3608]
[1739912635274,0.2110371,94816.0,94811.0,0.3608]
[1739912635469,0.00015793,94825.0,94811.0,0.3608]
[1739912635679,0.2110277,94820.0,94811.0,0.3608]
[1739912636371,0.00015793,94825.0,94811.0,0.3608]
[1739912636579,0.2110434,94813.0,94811.0,0.3608]
[1739912636882,0.00015793,94825.0,94807.0,0.00015821]
[1739912636883,0.3608,94816.0,94807.0,0.00015821]
[1739912637083,0.00015793,94825.0,94807.0,0.00015821]
[1739912637084,0.2110541,94808.0,94807.0,0.00015821]
[1739912637473,0.5110541,94808.0,94807.0,0.00015821]
[1739912637673,0.5110541,94808.0,94790.0,0.3608]
[1739912637674,0.2110919,94791.0,94790.0,0.3608]
[1739912637968,0.8608,94798.0,94766.0,0.73277723]
[1739912638172,0.2110908,94792.0,94775.0,0.67078102]
[1739912638475,0.3608,94798.0,94775.0,0.67078102]
[1739912638677,0.2111208,94779.0,94775.0,0.67078102]
[1739912638980,0.2111208,94779.0,94777.0,0.00015821]
[1739912639275,0.3608,94790.0,94777.0,0.00015821]
[1739912639476,0.00015821,94796.0,94785.0,0.3608]
[1739912639680,0.211103,94786.0,94785.0,0.3608]
[1739912639977,0.00015821,94796.0,94790.0,0.211094]
[1739912640178,0.00015821,94796.0,94785.0,0.3608]
[1739912640385,0.00015821,94796.0,94777.0,0.00015821]
[1739912640682,0.3608,94793.0,94777.0,0.00015821]
[1739912640978,0.21112,94779.0,94777.0,0.00015821]
[1739912641380,0.2111033,94786.0,94777.0,0.00015821]
[1739912641684,0.2111014,94787.0,94777.0,0.00015821]
[1739912641877,0.2111056,94785.0,94777.0,0.00015821]
[1739912642379,0.3608,94793.0,94777.0,0.00015821]
[1739912642579,1e-08,94796.0,94795.0,0.211083]
[1739912642787,1e-08,94796.0,94795.0,0.571883]
[1739912642980,0.5,94839.0,94795.0,0.6608]
[1739912643182,0.3608,94833.0,94806.0,0.3608]
[1739912643480,0.3608,94824.0,94806.0,0.3608]
[1739912644080,0.2110218,94823.0,94809.0,0.2110515]
[1739912644281,0.36095793,94824.0,94812.0,0.2110432]
[1739912644787,0.00015793,94824.0,94823.0,0.3608]
[1739912646585,0.314459,94851.0,94823.0,0.3608]
[1739912646784,0.2109636,94849.0,94839.0,0.3608]
[1739912646980,0.5,94853.0,94839.0,0.3608]
[1739912647192,0.3608,94865.0,94848.0,0.3608]
[1739912647390,0.13076,94881.0,94848.0,0.3608]
[1739912647391,0.5,94878.0,94856.0,0.3608]
[1739912647691,0.5,94867.0,94848.0,0.3608]
[1739912647888,0.5,94867.0,94857.0,0.00015812]
[1739912648189,0.5,94873.0,94857.0,0.00015812]
[1739912648383,0.3608,94907.0,94872.0,0.3608]
[1739912648580,0.3608,94907.0,94892.0,0.3608]
[1739912648784,0.3608,94907.0,94893.0,0.210865]
[1739912648992,0.3608,94907.0,94892.0,0.3608]
[1739912649894,0.3608,94907.0,94892.0,0.5716657]
[1739912650092,0.3608,94907.0,94892.0,0.3608]
[1739912650792,0.3608,94907.0,94890.0,0.13128]
[1739912650989,0.2108601,94896.0,94887.0,0.00015812]
[1739912651181,0.5,94902.0,94887.0,0.00015812]
[1739912651379,0.5,94904.0,94887.0,0.00015812]
[1739912651583,0.3608,94907.0,94890.0,0.2967966]
[1739912651892,2.0,94910.0,94899.0,0.2108517]
[1739912652484,2.0,94910.0,94894.0,0.3608]
[1739912652791,0.2108452,94902.0,94894.0,0.3608]
[1739912652991,0.3608,94895.0,94874.0,0.2109063]
[1739912653296,0.3608,94882.0,94850.0,0.2967966]
[1739912653488,0.3608,94882.0,94856.0,0.91948]
[1739912653489,0.3608,94874.0,94856.0,0.91948]
[1739912653689,0.3608,94865.0,94856.0,0.0014]
[1739912653988,0.3608,94874.0,94854.0,0.91948]
[1739912654195,0.36095783,94874.0,94855.0,0.00015812]
[1739912654494,0.36095783,94874.0,94860.0,0.2109376]
[1739912654797,0.36095783,94874.0,94861.0,0.210935]
[1739912655189,0.36095783,94874.0,94856.0,0.3608]
[1739912655384,0.36095783,94874.0,94863.0,0.2109303]
[1739912655587,0.36095783,94874.0,94856.0,0.3608]
[1739912655894,0.36095783,94874.0,94863.0,0.2109305]
[1739912656291,0.36095783,94874.0,94856.0,0.3608]
[1739912656791,0.36095783,94874.0,94863.0,0.2109295]
[1739912656987,0.36095783,94874.0,94856.0,0.3608]
[1739912657295,0.36095783,94874.0,94863.0,0.2109308]
[1739912657494,0.36095783,94874.0,94859.0,0.2109401]
[1739912657987,0.36095783,94874.0,94856.0,0.3608]
[1739912657988,0.36095783,94874.0,94860.0,0.2109374]
[1739912658493,0.3608,94866.0,94856.0,0.3608]